[Event "Titled Tuesday Blitz March 08 Early 2022"]
[White "Barros Rivadeneira, Cristhian"]
[Black "Vifleemskaia, Svetlana"]
[WhiteFideId "3609677"]
[BlackFideId "4129490"]
[WhiteElo "2220"]
[BlackElo "1901"]
[Result "1-0"]
[Round "04"]
[TimeControl "180+1"]
[Date "2022.03.09"]
[WhiteClock "0:00:06"]
[BlackClock "0:00:02"]

1. c4 {[%clk 0:03:00]}  c5 {[%clk 0:02:54]} 2. Nc3 {[%clk 0:02:59]}  Nf6 {[%clk 0:02:53]} 3. g3 {[%clk 0:03:00]}  d5 {[%clk 0:02:51]} 4. cxd5 {[%clk 0:03:00]}  Nxd5 {[%clk 0:02:51]} 5. Bg2 {[%clk 0:03:00]}  Nc7 {[%clk 0:02:52]} 6. Nf3 {[%clk 0:02:56]}  Nc6 {[%clk 0:02:52]} 7. O-O {[%clk 0:02:55]}  e5 {[%clk 0:02:52]} 8. d3 {[%clk 0:02:52]}  Be7 {[%clk 0:02:52]} 9. a4 {[%clk 0:02:53]}  O-O {[%clk 0:02:51]} 10. a5 {[%clk 0:02:50]}  a6 {[%clk 0:02:51]} 11. Nd2 {[%clk 0:02:41]}  Nd4 {[%clk 0:02:47]} 12. Nc4 {[%clk 0:02:40]}  f6 {[%clk 0:02:42]} 13. Nb6 {[%clk 0:02:32]}  Rb8 {[%clk 0:02:42]} 14. Nxc8 {[%clk 0:02:18]}  Qxc8 {[%clk 0:02:41]} 15. Na4 {[%clk 0:02:07]}  Qe6 {[%clk 0:02:33]} 16. Nb6 {[%clk 0:01:32]}  Nb3 {[%clk 0:02:27]} 17. Nd5 {[%clk 0:01:01]}  Nxd5 {[%clk 0:01:37]} 18. Qxb3 {[%clk 0:00:56]}  Rfd8 {[%clk 0:01:30]} 19. Be3 {[%clk 0:00:49]}  Nc7 {[%clk 0:01:25]} 20. Qa4 {[%clk 0:00:28]}  Nd5 {[%clk 0:01:11]} 21. Qc4 {[%clk 0:00:19]}  Kf7 {[%clk 0:00:56]} 22. Bd2 {[%clk 0:00:13]}  Nc7 {[%clk 0:00:51]} 23. Rfc1 {[%clk 0:00:11]}  Qxc4 {[%clk 0:00:50]} 24. Rxc4 {[%clk 0:00:11]}  Ne6 {[%clk 0:00:41]} 25. Be3 {[%clk 0:00:09]}  Nd4 {[%clk 0:00:29]} 26. Kf1 {[%clk 0:00:09]}  f5 {[%clk 0:00:25]} 27. Bxd4 {[%clk 0:00:05]}  exd4 {[%clk 0:00:20]} 28. Bf3 {[%clk 0:00:04]}  g6 {[%clk 0:00:18]} 29. Ra3 {[%clk 0:00:04]}  Ke6 {[%clk 0:00:10]} 30. Rb3 {[%clk 0:00:04]}  Bd6 {[%clk 0:00:10]} 31. Rxb7 {[%clk 0:00:02]}  Rxb7 {[%clk 0:00:10]} 32. Bxb7 {[%clk 0:00:03]}  Rb8 {[%clk 0:00:10]} 33. Bxa6 {[%clk 0:00:03]}  Ra8 {[%clk 0:00:10]} 34. Bb7 {[%clk 0:00:02]}  Rxa5 {[%clk 0:00:10]} 35. Bf3 {[%clk 0:00:02]}  Rb5 {[%clk 0:00:10]} 36. Rc2 {[%clk 0:00:03]}  Ra5 {[%clk 0:00:10]} 37. h4 {[%clk 0:00:03]}  Ra1+ {[%clk 0:00:10]} 38. Kg2 {[%clk 0:00:04]}  h5 {[%clk 0:00:11]} 39. Rc4 {[%clk 0:00:03]}  Rb1 {[%clk 0:00:09]} 40. Ra4 {[%clk 0:00:04]}  Rxb2 {[%clk 0:00:09]} 41. Ra7 {[%clk 0:00:04]}  Rb8 {[%clk 0:00:07]} 42. Ra6 {[%clk 0:00:04]}  Ke5 {[%clk 0:00:06]} 43. Bc6 {[%clk 0:00:04]}  Rc8 {[%clk 0:00:05]} 44. Bf3 {[%clk 0:00:04]}  Rb8 {[%clk 0:00:05]} 45. Bc6 {[%clk 0:00:05]}  Rc8 {[%clk 0:00:05]} 46. Kf3 {[%clk 0:00:05]}  Rb8 {[%clk 0:00:05]} 47. Bd7 {[%clk 0:00:05]}  Rb7 {[%clk 0:00:04]} 48. Be8 {[%clk 0:00:06]}  Rg7 {[%clk 0:00:04]} 49. Rc6 {[%clk 0:00:05]}  Ke6 {[%clk 0:00:03]} 50. Ra6 {[%clk 0:00:05]}  Kd5 {[%clk 0:00:02]} 51. Bb5 {[%clk 0:00:05]}  Ke6 {[%clk 0:00:02]} 52. Bc4+ {[%clk 0:00:05]}  Ke5 {[%clk 0:00:02]} 53. Ra8 {[%clk 0:00:06]}  g5 {[%clk 0:00:02]} 54. Re8+ {[%clk 0:00:06]} 1-0


[Site "https://www.chess.com"]

[Event "Titled Tuesday Blitz March 08 Early 2022"]
[White "Bashirli, Nail"]
[Black "Rudzinska, Michalina"]
[WhiteFideId "13406809"]
[BlackFideId "1172883"]
[WhiteElo "2333"]
[BlackElo "1904"]
[Result "1-0"]
[Round "04"]
[TimeControl "180+1"]
[Date "2022.03.09"]
[WhiteClock "0:00:44"]
[BlackClock "0:01:16"]

1. e4 {[%clk 0:03:00]}  c5 {[%clk 0:02:58]} 2. c3 {[%clk 0:02:43]}  d5 {[%clk 0:02:56]} 3. exd5 {[%clk 0:02:40]}  Qxd5 {[%clk 0:02:57]} 4. d4 {[%clk 0:02:35]}  Nf6 {[%clk 0:02:57]} 5. Nf3 {[%clk 0:02:34]}  Bg4 {[%clk 0:02:56]} 6. Be2 {[%clk 0:02:34]}  e6 {[%clk 0:02:55]} 7. O-O {[%clk 0:02:33]}  Nc6 {[%clk 0:02:54]} 8. Na3 {[%clk 0:02:22]}  cxd4 {[%clk 0:02:51]} 9. Nb5 {[%clk 0:01:48]}  Qd7 {[%clk 0:02:50]} 10. Nbxd4 {[%clk 0:01:47]}  Nxd4 {[%clk 0:02:48]} 11. Nxd4 {[%clk 0:01:40]}  Bxe2 {[%clk 0:02:47]} 12. Qxe2 {[%clk 0:01:28]}  Bc5 {[%clk 0:02:47]} 13. Rd1 {[%clk 0:01:27]}  Qe7 {[%clk 0:02:46]} 14. Qb5+ {[%clk 0:01:25]}  Kf8 {[%clk 0:02:30]} 15. Be3 {[%clk 0:01:24]}  a6 {[%clk 0:02:29]} 16. Qxc5 {[%clk 0:01:10]}  Qxc5 {[%clk 0:02:27]} 17. Nxe6+ {[%clk 0:01:10]}  fxe6 {[%clk 0:02:28]} 18. Bxc5+ {[%clk 0:01:11]}  Kf7 {[%clk 0:02:28]} 19. Rd3 {[%clk 0:01:10]}  Rhd8 {[%clk 0:02:26]} 20. Rad1 {[%clk 0:01:11]}  Rd5 {[%clk 0:02:25]} 21. Rxd5 {[%clk 0:01:08]}  Nxd5 {[%clk 0:02:23]} 22. Kf1 {[%clk 0:01:04]}  Rc8 {[%clk 0:02:22]} 23. Bd4 {[%clk 0:01:02]}  Ne7 {[%clk 0:02:18]} 24. Ke2 {[%clk 0:01:01]}  Rd8 {[%clk 0:02:16]} 25. Be3 {[%clk 0:01:01]}  Rxd1 {[%clk 0:02:09]} 26. Kxd1 {[%clk 0:01:01]}  e5 {[%clk 0:02:08]} 27. Kd2 {[%clk 0:01:01]}  Ke6 {[%clk 0:02:08]} 28. Kd3 {[%clk 0:01:01]}  Nf5 {[%clk 0:02:02]} 29. Kc4 {[%clk 0:00:57]}  Kd6 {[%clk 0:01:51]} 30. a4 {[%clk 0:00:57]}  Kc6 {[%clk 0:01:50]} 31. Kd3 {[%clk 0:00:56]}  Kd5 {[%clk 0:01:48]} 32. c4+ {[%clk 0:00:56]}  Ke6 {[%clk 0:01:49]} 33. b4 {[%clk 0:00:56]}  Nd6 {[%clk 0:01:47]} 34. b5 {[%clk 0:00:55]}  axb5 {[%clk 0:01:46]} 35. cxb5 {[%clk 0:00:56]}  Kd5 {[%clk 0:01:44]} 36. Kc3 {[%clk 0:00:55]}  Nc4 {[%clk 0:01:40]} 37. Kb4 {[%clk 0:00:55]}  Nb2 {[%clk 0:01:24]} 38. a5 {[%clk 0:00:51]}  Nd3+ {[%clk 0:01:24]} 39. Kc3 {[%clk 0:00:48]}  Ne1 {[%clk 0:01:14]} 40. g3 {[%clk 0:00:42]}  Nf3 {[%clk 0:01:13]} 41. h4 {[%clk 0:00:42]}  Nd4 {[%clk 0:01:10]} 42. Bxd4 {[%clk 0:00:38]}  exd4+ {[%clk 0:01:10]} 43. Kd3 {[%clk 0:00:39]}  Kc5 {[%clk 0:01:11]} 44. a6 {[%clk 0:00:39]}  bxa6 {[%clk 0:01:10]} 45. bxa6 {[%clk 0:00:40]}  Kb6 {[%clk 0:01:10]} 46. Kxd4 {[%clk 0:00:41]}  Kxa6 {[%clk 0:01:11]} 47. Ke5 {[%clk 0:00:42]}  Kb6 {[%clk 0:01:11]} 48. Ke6 {[%clk 0:00:42]}  Kc5 {[%clk 0:01:12]} 49. Kf7 {[%clk 0:00:43]}  Kd4 {[%clk 0:01:13]} 50. Kxg7 {[%clk 0:00:44]}  Ke4 {[%clk 0:01:14]} 51. Kxh7 {[%clk 0:00:44]}  Kf3 {[%clk 0:01:15]} 52. Kg6 {[%clk 0:00:43]}  Kxf2 {[%clk 0:01:16]} 53. h5 {[%clk 0:00:44]} 1-0


[Site "https://www.chess.com"]

[Event "Titled Tuesday Blitz March 08 Early 2022"]
[White "Bashirli, Saadat"]
[Black "Kohler, Aran"]
[WhiteFideId "13429990"]
[BlackFideId "1002856"]
[WhiteElo "1173"]
[BlackElo "2270"]
[Result "0-1"]
[Round "04"]
[TimeControl "180+1"]
[Date "2022.03.09"]
[WhiteClock "0:01:01"]
[BlackClock "0:00:20"]

1. d4 {[%clk 0:02:45]}  d5 {[%clk 0:02:58]} 2. Bg5 {[%clk 0:02:44]}  f6 {[%clk 0:02:50]} 3. Bf4 {[%clk 0:02:43]}  g5 {[%clk 0:02:44]} 4. Bg3 {[%clk 0:02:40]}  h5 {[%clk 0:02:37]} 5. f3 {[%clk 0:02:40]}  h4 {[%clk 0:02:36]} 6. Bf2 {[%clk 0:02:37]}  Nc6 {[%clk 0:02:35]} 7. Nc3 {[%clk 0:02:31]}  Nh6 {[%clk 0:02:28]} 8. e4 {[%clk 0:02:28]}  e6 {[%clk 0:02:23]} 9. Bb5 {[%clk 0:02:26]}  Bb4 {[%clk 0:02:20]} 10. Bxc6+ {[%clk 0:02:22]}  bxc6 {[%clk 0:02:19]} 11. Ne2 {[%clk 0:02:17]}  dxe4 {[%clk 0:02:07]} 12. fxe4 {[%clk 0:02:16]}  O-O {[%clk 0:02:08]} 13. O-O {[%clk 0:02:16]}  Ba6 {[%clk 0:02:08]} 14. Be3 {[%clk 0:02:13]}  Nf7 {[%clk 0:02:04]} 15. Re1 {[%clk 0:02:08]}  e5 {[%clk 0:01:54]} 16. d5 {[%clk 0:02:04]}  Qd6 {[%clk 0:01:33]} 17. dxc6 {[%clk 0:01:57]}  Bc5 {[%clk 0:01:19]} 18. Bxc5 {[%clk 0:01:53]}  Qxc5+ {[%clk 0:01:19]} 19. Kh1 {[%clk 0:01:52]}  Qxc6 {[%clk 0:01:12]} 20. Qd5 {[%clk 0:01:51]}  Bb7 {[%clk 0:00:58]} 21. Qxc6 {[%clk 0:01:49]}  Bxc6 {[%clk 0:00:58]} 22. Ng1 {[%clk 0:01:49]}  Rad8 {[%clk 0:00:54]} 23. Rad1 {[%clk 0:01:47]}  Rfe8 {[%clk 0:00:42]} 24. Nf3 {[%clk 0:01:46]}  Rxd1 {[%clk 0:00:36]} 25. Rxd1 {[%clk 0:01:47]}  Nd6 {[%clk 0:00:36]} 26. Nd2 {[%clk 0:01:45]}  Kf7 {[%clk 0:00:31]} 27. Re1 {[%clk 0:01:43]}  Rb8 {[%clk 0:00:30]} 28. b3 {[%clk 0:01:41]}  Ke6 {[%clk 0:00:30]} 29. Nf1 {[%clk 0:01:39]}  h3 {[%clk 0:00:27]} 30. Ng3 {[%clk 0:01:34]}  hxg2+ {[%clk 0:00:24]} 31. Kxg2 {[%clk 0:01:35]}  f5 {[%clk 0:00:24]} 32. Kf3 {[%clk 0:01:31]}  g4+ {[%clk 0:00:23]} 33. Kf2 {[%clk 0:01:29]}  f4 {[%clk 0:00:24]} 34. Nh1 {[%clk 0:01:27]}  Rh8 {[%clk 0:00:24]} 35. Kg2 {[%clk 0:01:25]}  Rh3 {[%clk 0:00:23]} 36. Nd5 {[%clk 0:01:18]}  Bxd5 {[%clk 0:00:23]} 37. exd5+ {[%clk 0:01:19]}  Kxd5 {[%clk 0:00:23]} 38. Nf2 {[%clk 0:01:20]}  Rc3 {[%clk 0:00:22]} 39. Rc1 {[%clk 0:01:14]}  g3 {[%clk 0:00:21]} 40. Nd3 {[%clk 0:01:13]}  Nf5 {[%clk 0:00:19]} 41. Kf1 {[%clk 0:01:05]}  gxh2 {[%clk 0:00:18]} 42. Kg2 {[%clk 0:01:05]}  Rxc2+ {[%clk 0:00:19]} 43. Rxc2 {[%clk 0:01:03]}  Ne3+ {[%clk 0:00:19]} 44. Kxh2 {[%clk 0:01:03]}  Nxc2 {[%clk 0:00:20]} 45. Kg2 {[%clk 0:01:03]}  Kd4 {[%clk 0:00:20]} 46. Nb2 {[%clk 0:01:02]}  Nb4 {[%clk 0:00:20]} 47. Kf2 {[%clk 0:01:01]}  Nd3+ {[%clk 0:00:20]} 0-1


[Site "https://www.chess.com"]

[Event "Titled Tuesday Blitz March 08 Early 2022"]
[White "Bernat, David"]
[Black "Tymrakiewicz, Rafal"]
[WhiteFideId "2099225"]
[BlackFideId "1108832"]
[WhiteElo "2284"]
[BlackElo "2205"]
[Result "0-1"]
[Round "04"]
[TimeControl "180+1"]
[Date "2022.03.09"]
[WhiteClock "0:00:08"]
[BlackClock "0:00:04"]

1. c4 {[%clk 0:03:00]}  g6 {[%clk 0:02:57]} 2. Nc3 {[%clk 0:03:01]}  Bg7 {[%clk 0:02:57]} 3. g3 {[%clk 0:03:01]}  d6 {[%clk 0:02:55]} 4. Bg2 {[%clk 0:03:02]}  e5 {[%clk 0:02:55]} 5. d3 {[%clk 0:03:02]}  Ne7 {[%clk 0:02:55]} 6. e4 {[%clk 0:03:02]}  O-O {[%clk 0:02:55]} 7. Nge2 {[%clk 0:03:03]}  Nbc6 {[%clk 0:02:54]} 8. O-O {[%clk 0:03:03]}  Bg4 {[%clk 0:02:55]} 9. f3 {[%clk 0:03:02]}  Be6 {[%clk 0:02:54]} 10. Nd5 {[%clk 0:03:01]}  f5 {[%clk 0:02:53]} 11. Bg5 {[%clk 0:03:00]}  h6 {[%clk 0:02:51]} 12. Be3 {[%clk 0:02:55]}  Qd7 {[%clk 0:02:48]} 13. Qd2 {[%clk 0:02:53]}  Kh7 {[%clk 0:02:48]} 14. Nxe7 {[%clk 0:02:49]}  Qxe7 {[%clk 0:02:44]} 15. exf5 {[%clk 0:02:40]}  Bxf5 {[%clk 0:02:31]} 16. Nc3 {[%clk 0:02:39]}  Qd7 {[%clk 0:02:23]} 17. g4 {[%clk 0:02:31]}  Be6 {[%clk 0:02:21]} 18. Ne4 {[%clk 0:02:24]}  Rf7 {[%clk 0:02:18]} 19. h4 {[%clk 0:02:10]}  Raf8 {[%clk 0:02:16]} 20. b4 {[%clk 0:01:59]}  b6 {[%clk 0:02:13]} 21. b5 {[%clk 0:01:58]}  Ne7 {[%clk 0:02:07]} 22. Rac1 {[%clk 0:01:49]}  c5 {[%clk 0:01:35]} 23. bxc6 {[%clk 0:01:44]}  Nxc6 {[%clk 0:01:35]} 24. Kh1 {[%clk 0:01:26]}  d5 {[%clk 0:01:25]} 25. cxd5 {[%clk 0:01:22]}  Bxd5 {[%clk 0:01:26]} 26. Bh3 {[%clk 0:01:15]}  Qd8 {[%clk 0:01:23]} 27. g5 {[%clk 0:01:07]}  h5 {[%clk 0:01:16]} 28. Kg2 {[%clk 0:01:07]}  Nd4 {[%clk 0:01:05]} 29. Bxd4 {[%clk 0:01:05]}  exd4 {[%clk 0:01:06]} 30. f4 {[%clk 0:01:04]}  Re8 {[%clk 0:01:01]} 31. f5 {[%clk 0:00:56]}  Rxe4 {[%clk 0:00:54]} 32. fxg6+ {[%clk 0:00:41]}  Kxg6 {[%clk 0:00:54]} 33. dxe4 {[%clk 0:00:41]}  Bxe4+ {[%clk 0:00:55]} 34. Kg1 {[%clk 0:00:41]}  Rxf1+ {[%clk 0:00:46]} 35. Rxf1 {[%clk 0:00:40]}  d3 {[%clk 0:00:46]} 36. Rf4 {[%clk 0:00:24]}  Bd4+ {[%clk 0:00:45]} 37. Kf1 {[%clk 0:00:23]}  Qd5 {[%clk 0:00:19]} 38. Qb4 {[%clk 0:00:20]}  d2 {[%clk 0:00:17]} 39. Qxd2 {[%clk 0:00:19]}  Be5 {[%clk 0:00:13]} 40. Qxd5 {[%clk 0:00:18]}  Bxd5 {[%clk 0:00:13]} 41. Rf5 {[%clk 0:00:13]}  Bc4+ {[%clk 0:00:12]} 42. Ke1 {[%clk 0:00:14]}  Bc3+ {[%clk 0:00:12]} 43. Kd1 {[%clk 0:00:14]}  Bxa2 {[%clk 0:00:12]} 44. Kc2 {[%clk 0:00:14]}  Bd4 {[%clk 0:00:12]} 45. Rf4 {[%clk 0:00:13]}  Bg7 {[%clk 0:00:11]} 46. Bf5+ {[%clk 0:00:13]}  Kf7 {[%clk 0:00:08]} 47. Bg4+ {[%clk 0:00:09]}  Ke7 {[%clk 0:00:08]} 48. Bxh5 {[%clk 0:00:09]}  Be6 {[%clk 0:00:08]} 49. Re4 {[%clk 0:00:09]}  Kd6 {[%clk 0:00:07]} 50. Re1 {[%clk 0:00:07]}  b5 {[%clk 0:00:07]} 51. Bf3 {[%clk 0:00:06]}  b4 {[%clk 0:00:07]} 52. h5 {[%clk 0:00:06]}  b3+ {[%clk 0:00:07]} 53. Kb1 {[%clk 0:00:06]}  a5 {[%clk 0:00:05]} 54. h6 {[%clk 0:00:06]}  Bc3 {[%clk 0:00:05]} 55. h7 {[%clk 0:00:05]}  a4 {[%clk 0:00:05]} 56. Rc1 {[%clk 0:00:02]}  Bg7 {[%clk 0:00:04]} 57. Rd1+ {[%clk 0:00:02]}  Kc5 {[%clk 0:00:03]} 58. g6 {[%clk 0:00:02]}  a3 {[%clk 0:00:03]} 59. Be4 {[%clk 0:00:02]}  a2+ {[%clk 0:00:03]} 60. Kc1 {[%clk 0:00:03]}  b2+ {[%clk 0:00:03]} 61. Kd2 {[%clk 0:00:03]}  a1=Q {[%clk 0:00:04]} 62. h8=Q {[%clk 0:00:03]}  Bxh8 {[%clk 0:00:03]} 63. Ke2 {[%clk 0:00:04]}  Qxd1+ {[%clk 0:00:03]} 64. Kxd1 {[%clk 0:00:05]}  Kb4 {[%clk 0:00:03]} 65. Ke2 {[%clk 0:00:06]}  Ka3 {[%clk 0:00:03]} 66. Kf3 {[%clk 0:00:07]}  Bd5 {[%clk 0:00:03]} 67. Kf4 {[%clk 0:00:07]}  Bxe4 {[%clk 0:00:03]} 68. Kxe4 {[%clk 0:00:08]}  b1=Q+ {[%clk 0:00:04]} 69. Kd5 {[%clk 0:00:08]}  Qxg6 {[%clk 0:00:04]} 0-1


[Site "https://www.chess.com"]

[Event "Titled Tuesday Blitz March 08 Early 2022"]
[White "Bilych, Olexiy"]
[Black "Hoffmann, Asa"]
[WhiteFideId "14156504"]
[BlackFideId "2001470"]
[WhiteElo "2176"]
[BlackElo "2117"]
[Result "1-0"]
[Round "04"]
[TimeControl "180+1"]
[Date "2022.03.09"]
[WhiteClock "0:00:15"]
[BlackClock "0:00:19"]

1. e4 {[%clk 0:02:58]}  d6 {[%clk 0:02:57]} 2. d4 {[%clk 0:02:58]}  Nf6 {[%clk 0:02:55]} 3. Nc3 {[%clk 0:02:58]}  c6 {[%clk 0:02:50]} 4. f4 {[%clk 0:02:57]}  Qa5 {[%clk 0:02:47]} 5. Bd3 {[%clk 0:02:53]}  e5 {[%clk 0:02:46]} 6. dxe5 {[%clk 0:02:50]}  dxe5 {[%clk 0:02:46]} 7. Nf3 {[%clk 0:02:51]}  Nbd7 {[%clk 0:02:37]} 8. O-O {[%clk 0:02:50]}  Bd6 {[%clk 0:02:36]} 9. f5 {[%clk 0:02:40]}  b5 {[%clk 0:02:32]} 10. Qe1 {[%clk 0:02:38]}  Qb6+ {[%clk 0:02:20]} 11. Kh1 {[%clk 0:02:36]}  h5 {[%clk 0:02:19]} 12. a4 {[%clk 0:02:28]}  b4 {[%clk 0:02:18]} 13. a5 {[%clk 0:02:28]}  Qc7 {[%clk 0:02:14]} 14. Ne2 {[%clk 0:02:26]}  Nc5 {[%clk 0:02:09]} 15. Ned4 {[%clk 0:01:49]}  Nxd3 {[%clk 0:02:00]} 16. cxd3 {[%clk 0:01:49]}  Ba6 {[%clk 0:01:49]} 17. Qd1 {[%clk 0:01:12]}  exd4 {[%clk 0:01:40]} 18. e5 {[%clk 0:01:12]}  O-O-O {[%clk 0:01:22]} 19. exd6 {[%clk 0:01:08]}  Qxd6 {[%clk 0:01:20]} 20. Bg5 {[%clk 0:00:41]}  Rde8 {[%clk 0:01:15]} 21. Rc1 {[%clk 0:00:39]}  Bb5 {[%clk 0:01:07]} 22. Qd2 {[%clk 0:00:30]}  Ng4 {[%clk 0:01:00]} 23. Bf4 {[%clk 0:00:29]}  Qd5 {[%clk 0:00:58]} 24. Qxb4 {[%clk 0:00:27]}  Qxf5 {[%clk 0:00:47]} 25. Rc5 {[%clk 0:00:21]}  Qxd3 {[%clk 0:00:44]} 26. Rfc1 {[%clk 0:00:18]}  Kd7 {[%clk 0:00:34]} 27. Rd5+ {[%clk 0:00:15]}  Kc8 {[%clk 0:00:19]} 28. Rxb5 {[%clk 0:00:15]} 1-0


[Site "https://www.chess.com"]

[Event "Titled Tuesday Blitz March 08 Early 2022"]
[White "Bintang, Rasyid A. Hidayat"]
[Black "Sanchez Alvares, Kelvin Antonio"]
[WhiteFideId "7105355"]
[BlackFideId "3906680"]
[WhiteElo "2372"]
[BlackElo "2193"]
[Result "0-1"]
[Round "04"]
[TimeControl "180+1"]
[Date "2022.03.09"]
[WhiteClock "0:00:40"]
[BlackClock "0:01:46"]

1. d4 {[%clk 0:02:59]}  d5 {[%clk 0:02:59]} 2. Bf4 {[%clk 0:02:58]}  Nf6 {[%clk 0:02:58]} 3. e3 {[%clk 0:02:58]}  c5 {[%clk 0:02:57]} 4. Nc3 {[%clk 0:02:58]}  a6 {[%clk 0:02:45]} 5. Nf3 {[%clk 0:02:58]}  Nc6 {[%clk 0:02:44]} 6. Bd3 {[%clk 0:02:54]}  Bg4 {[%clk 0:02:43]} 7. Be2 {[%clk 0:02:42]}  e6 {[%clk 0:02:42]} 8. O-O {[%clk 0:02:40]}  Bxf3 {[%clk 0:02:40]} 9. Bxf3 {[%clk 0:02:41]}  cxd4 {[%clk 0:02:40]} 10. exd4 {[%clk 0:02:42]}  Qb6 {[%clk 0:02:38]} 11. Ne2 {[%clk 0:02:34]}  Be7 {[%clk 0:02:38]} 12. c3 {[%clk 0:02:31]}  O-O {[%clk 0:02:38]} 13. Nc1 {[%clk 0:02:30]}  Rfc8 {[%clk 0:02:35]} 14. Nd3 {[%clk 0:02:28]}  Ne4 {[%clk 0:02:30]} 15. Re1 {[%clk 0:02:24]}  f5 {[%clk 0:02:29]} 16. Rb1 {[%clk 0:02:02]}  Bf6 {[%clk 0:02:23]} 17. Bxe4 {[%clk 0:01:52]}  fxe4 {[%clk 0:02:18]} 18. Nc5 {[%clk 0:01:50]}  Re8 {[%clk 0:02:12]} 19. Nd7 {[%clk 0:01:42]}  Qd8 {[%clk 0:02:11]} 20. Nxf6+ {[%clk 0:01:42]}  Qxf6 {[%clk 0:02:12]} 21. Qg4 {[%clk 0:01:31]}  Qf5 {[%clk 0:02:08]} 22. Qg3 {[%clk 0:01:16]}  Rf8 {[%clk 0:02:07]} 23. Be5 {[%clk 0:01:15]}  Nxe5 {[%clk 0:02:06]} 24. dxe5 {[%clk 0:01:14]}  Qf4 {[%clk 0:02:00]} 25. Re3 {[%clk 0:01:05]}  Qxg3 {[%clk 0:01:57]} 26. hxg3 {[%clk 0:01:04]}  b5 {[%clk 0:01:57]} 27. Rd1 {[%clk 0:00:59]}  Rf5 {[%clk 0:01:52]} 28. f4 {[%clk 0:00:57]}  g5 {[%clk 0:01:51]} 29. Rf1 {[%clk 0:00:43]}  Raf8 {[%clk 0:01:50]} 30. Ree1 {[%clk 0:00:38]}  gxf4 {[%clk 0:01:49]} 31. gxf4 {[%clk 0:00:39]}  Rxf4 {[%clk 0:01:49]} 32. Rxf4 {[%clk 0:00:40]}  Rxf4 {[%clk 0:01:48]} 33. Re3 {[%clk 0:00:40]}  Rf5 {[%clk 0:01:46]} 0-1


[Site "https://www.chess.com"]

[Event "Titled Tuesday Blitz March 08 Early 2022"]
[White "Budrewicz, Krzysztof"]
[Black "Aitbayev, Aslan"]
[WhiteFideId "1127950"]
[BlackFideId "13704613"]
[WhiteElo "2248"]
[BlackElo "2385"]
[Result "0-1"]
[Round "04"]
[TimeControl "180+1"]
[Date "2022.03.09"]
[WhiteClock "0:00:07"]
[BlackClock "0:00:07"]

1. d4 {[%clk 0:02:04]}  Nf6 {[%clk 0:02:55]} 2. c4 {[%clk 0:02:05]}  g6 {[%clk 0:02:56]} 3. Nc3 {[%clk 0:02:05]}  Bg7 {[%clk 0:02:56]} 4. e4 {[%clk 0:02:05]}  d6 {[%clk 0:02:56]} 5. g3 {[%clk 0:02:06]}  O-O {[%clk 0:02:55]} 6. Bg2 {[%clk 0:02:06]}  e5 {[%clk 0:02:49]} 7. d5 {[%clk 0:02:06]}  a5 {[%clk 0:02:39]} 8. Nge2 {[%clk 0:02:06]}  Na6 {[%clk 0:02:39]} 9. O-O {[%clk 0:02:07]}  Bd7 {[%clk 0:02:29]} 10. h3 {[%clk 0:02:06]}  Nc5 {[%clk 0:02:22]} 11. Be3 {[%clk 0:02:05]}  b6 {[%clk 0:02:21]} 12. g4 {[%clk 0:02:02]}  h5 {[%clk 0:02:18]} 13. g5 {[%clk 0:01:53]}  Nh7 {[%clk 0:02:16]} 14. Qd2 {[%clk 0:01:53]}  Qc8 {[%clk 0:02:02]} 15. h4 {[%clk 0:01:47]}  f6 {[%clk 0:02:02]} 16. f4 {[%clk 0:01:43]}  Bh3 {[%clk 0:01:46]} 17. f5 {[%clk 0:01:33]}  Bxg2 {[%clk 0:01:36]} 18. Kxg2 {[%clk 0:01:31]}  fxg5 {[%clk 0:01:36]} 19. hxg5 {[%clk 0:01:06]}  gxf5 {[%clk 0:01:28]} 20. exf5 {[%clk 0:01:06]}  Rxf5 {[%clk 0:01:24]} 21. Ng3 {[%clk 0:01:05]}  Rxf1 {[%clk 0:01:22]} 22. Rxf1 {[%clk 0:01:05]}  Qg4 {[%clk 0:01:19]} 23. Qe2 {[%clk 0:01:05]}  Rf8 {[%clk 0:01:00]} 24. Rxf8+ {[%clk 0:00:55]}  Nxf8 {[%clk 0:01:00]} 25. Qxg4 {[%clk 0:00:49]}  hxg4 {[%clk 0:01:01]} 26. Bxc5 {[%clk 0:00:49]}  bxc5 {[%clk 0:00:54]} 27. Nge4 {[%clk 0:00:49]}  Ng6 {[%clk 0:00:30]} 28. Kg3 {[%clk 0:00:48]}  Nf4 {[%clk 0:00:24]} 29. Kxg4 {[%clk 0:00:49]}  Nd3 {[%clk 0:00:21]} 30. b3 {[%clk 0:00:47]}  Nb4 {[%clk 0:00:19]} 31. Kf5 {[%clk 0:00:46]}  Kf7 {[%clk 0:00:18]} 32. g6+ {[%clk 0:00:47]}  Ke7 {[%clk 0:00:19]} 33. Ng5 {[%clk 0:00:42]}  Nc2 {[%clk 0:00:18]} 34. Ne6 {[%clk 0:00:38]}  Bh6 {[%clk 0:00:18]} 35. Nxc7 {[%clk 0:00:34]}  Nd4+ {[%clk 0:00:15]} 36. Kg4 {[%clk 0:00:31]}  Kf6 {[%clk 0:00:15]} 37. Kh5 {[%clk 0:00:32]}  Bf8 {[%clk 0:00:12]} 38. Ne6 {[%clk 0:00:31]}  Nxe6 {[%clk 0:00:11]} 39. dxe6 {[%clk 0:00:31]}  Kxe6 {[%clk 0:00:11]} 40. Kg5 {[%clk 0:00:28]}  Bg7 {[%clk 0:00:09]} 41. Nd5 {[%clk 0:00:14]}  Bf8 {[%clk 0:00:05]} 42. Nf6 {[%clk 0:00:13]}  Be7 {[%clk 0:00:05]} 43. g7 {[%clk 0:00:05]}  Bxf6+ {[%clk 0:00:06]} 44. Kg6 {[%clk 0:00:06]}  Bxg7 {[%clk 0:00:06]} 45. Kxg7 {[%clk 0:00:07]}  e4 {[%clk 0:00:07]} 0-1


[Site "https://www.chess.com"]